Cogmind - Beta 17 @@@ ROGUE MODE // 2026.07.27 @ 19:05:24 Player: mischief_2000 Result: Destroyed by G-50 Soldier with Heavy Laser Performance ------------- Evolutions (4) 2000 Regions Visited (8) 1600 Robots Destroyed (134) 670 Value Destroyed (3494) 3494 Prototype IDs (17) 340 Alien Tech Used (0) 0 Bonus (1117) 1117 TOTAL SCORE: 9221 Bonus ------- High Alert Combat Kills 317 Registered with UFD 300 Met Optimus in HQ 500 Cogmind --------- Core Integrity 0/850 Matter 300/300 Energy 100/100 System Corruption 6% Temperature Cool (27) Movement Core (400) Ox7 Location -6/Factory Parts ------- > --- POWER (1) -------- (None) > --- PROPULSION (6) --- (None) > --- UTILITY (5) ------ Large Storage Unit Advanced Signal Interpreter Hacking Suite System Shield > --- WEAPON (3) ------- Companion Sword > --- INVENTORY (15) --- Wheel Biomechanical Wings Medium Storage Unit Transport Network Coupler Advanced Melee Analysis Suite Microactuators Improved Actuator Array ECM Suite Hacking Suite Authchip [Propulsion] Authchip [Propulsion] Drone Bay (2/2) Mini Assault Cannon Long-range Missile Launcher Datajack Peak State ------------ > --- POWER ------------ Micro Fission Core > --- PROPULSION ------- Gravmag System Gravmag System Improved Airjet Improved Airjet Improved Airjet Antigrav System > --- UTILITY ---------- Medium Storage Unit Machine Analyzer Advanced Sensor Array Advanced Signal Interpreter Experimental Utility Shielding > --- WEAPON ----------- Power Sword Power Sword Companion Sword > --- INVENTORY -------- Micro Nuclear Core Advanced Melee Analysis Suite Microactuators Improved Actuator Array Hacking Suite Authchip [Propulsion] Dynamic Insulation System Mini Assault Cannon Long-range Missile Launcher Power Sword [Rating: 75] Favorites ----------- Power Nuclear Core Engine Light Ion Engine Power Core Nuclear Core Propulsion Light Treads Treads Light Treads Leg Carbon-fiber Leg Wheel Compact Wheel Hover Unit Improved Airjet Flight Unit Improved Flight Unit Utility Seismic Detector Device Seismic Detector Storage Huge Storage Unit Processor Advanced Signal Interpreter Hackware Hacking Suite Protection Experimental Utility Shielding Weapon Improved Medium Laser Energy Gun Improved Medium Laser Energy Cannon Beam Cannon Ballistic Gun Assault Rifle Ballistic Cannon Light Cannon Launcher Mini Grenade Launcher Special Weapon Mining Laser Slashing Weapon Power Sword Special Melee Weapon Datajack Build | -11 -10 -9 -9 -9 -9 -6 -6 -6 ------- Run | Yrd Mat Mat Sto Rec Scr Fac Was Fac Slots Evolved 8 | . . 2 . . . 6 . . Power . | . . . . . . . . . Propulsion 4 | . . 1 . . . 3 . . Utility 3 | . . 1 . . . 2 . . Weapon 1 | . . . . . . 1 . . Parts Attached 115 | 7 9 25 5 . 8 46 1 14 Power 13 | 1 2 3 1 . . 4 . 2 Engine 4 | 1 2 1 . . . . . . Core 9 | . . 2 1 . . 4 . 2 Reactor . | . . . . . . . . . Propulsion 45 | 2 1 12 3 . 2 18 1 6 Treads 14 | 2 . 8 3 . 1 . . . Leg 1 | . . . . . . . . 1 Wheel 6 | . 1 4 . . 1 . . . Hover 11 | . . . . . . 7 1 3 Flight 13 | . . . . . . 11 . 2 Utility 35 | 2 2 4 1 . 3 18 . 5 Device 17 | 1 . 3 1 . 2 9 . 1 Storage 5 | 1 2 . . . . 1 . 1 Processor 4 | . . . . . 1 2 . 1 Hackware 7 | . . . . . . 5 . 2 Protection 2 | . . 1 . . . 1 . . Artifact . | . . . . . . . . . Weapon 22 | 2 4 6 . . 3 6 . 1 Energy Gun 5 | . . 5 . . . . . . Energy Cannon 3 | . 2 1 . . . . . . Ballistic Gun 2 | 2 . . . . . . . . Ballistic Cannon 2 | . 1 . . . . 1 . . Launcher 2 | . . . . . . 2 . . Special Weapon 1 | . 1 . . . . . . . Impact Weapon . | . . . . . . . . . Slashing Weapon 4 | . . . . . 2 1 . 1 Piercing Weapon . | . . . . . . . . . Special Melee Weapon 3 | . . . . . 1 2 . . Unidentified Prototypes 6 | . . 1 . . 1 3 . 1 Parts Lost 25 | . 1 4 . . . 7 . 13 Power 5 | . 1 1 . . . . . 3 Propulsion 12 | . . 2 . . . 3 . 7 Utility 5 | . . 1 . . . 3 . 1 Weapon 3 | . . . . . . 1 . 2 Highest Loss Streak 7 | . 1 1 . . . 2 . 7 To Critical Strikes . | . . . . . . . . . Average Backups 19 | 5 15 24 24 25 25 10 10 11 Power 1 | . 1 1 1 1 1 1 2 . Propulsion 4 | 3 5 4 6 9 7 . . . Utility 7 | . 3 9 8 8 8 6 5 7 Weapon 4 | 1 4 7 6 5 5 1 3 2 Tool/Special . | . . . . . . . . . Unused Backups 43 | . 6 10 4 . 1 12 . 10 Power 1 | . . 1 . . . . . . Propulsion 4 | . 1 2 . . . 1 . . Utility 22 | . 1 3 1 . 1 7 . 9 Weapon 14 | . 4 4 3 . . 3 . . Tool/Special 2 | . . . . . . 1 . 1 Average Slot Usage (%) 98 | . 99 99 100 100 100 95 89 88 Engine 3 | . 14 3 . . . . . . Core 7 | . . 7 11 11 11 6 6 5 Treads 19 | . 21 20 33 33 27 . . . Wheel 5 | . 6 12 . . 5 . . . Hover 2 | . . . . . . 4 36 29 Flight 5 | . . . . . . 32 . . Device 16 | . 14 21 22 22 20 8 13 4 Storage 10 | . 14 11 11 11 11 6 6 6 Processor 1 | . . . . . 1 6 6 7 Hackware 2 | . . . . . . 10 . 7 Energy Gun 9 | . . 16 22 22 13 . . . Energy Cannon 1 | . 5 4 . . . . . . Ballistic Gun 3 | . 19 . . . . . . . Slashing Weapon 6 | . . . . . 8 14 13 18 Peak Build Rating 75 | 7 10 22 22 21 32 74 69 75 Average Rating 27 | 5 8 19 21 21 24 56 66 59 On Entrance 27 | . 7 10 22 21 21 32 63 69 Avg Prop Armor Cover (%) 13 | . 12 16 . . 23 5 9 6 Naked Turns . | . . . . . . . . . Heaviest Build 99 | 12 92 99 96 96 97 35 27 37 Greatest Support 60 | 40 40 60 60 60 60 54 36 49 Greatest Overweight (x) 9 | . 5 6 1 1 9 2 . 8 Average Overweight (x) 1 | . 2 3 1 1 5 . . . Largest Inventory Capacity 25 | 8 25 25 25 25 25 25 10 15 Average Capacity 20 | 7 18 25 25 25 25 10 10 12 Most Carried 25 | 8 25 25 25 25 25 24 10 15 Average Carried 19 | 5 15 24 24 25 24 9 10 11 Final Capacity 25 | 8 25 25 25 25 25 10 10 15 Final Carried 25 | 8 25 25 25 25 25 10 10 15 Class Distribution -------------------- 46% | Mutant 32% | Scavenger-Mutant 9% | Hacker-Sprinter 5% | Gladiator 3% | Sprinter Dominant Class ---------------- Mutant | -10/Materials Scavenger-Mutant | -9/Materials Scavenger-Mutant | -9/Storage Scavenger-Mutant | -9/Recycling Mutant | -9/Scraptown Hacker-Sprinter | -6/Factory Mutant | -6/Waste Scavenger-Mutant | -6/Factory Resources | -11 -10 -9 -9 -9 -9 -6 -6 -6 ----------- Run | Yrd Mat Mat Sto Rec Scr Fac Was Fac Matter Collected 2489 | 296 604 314 55 . 79 719 . 422 Remotely . | . . . . . . . . . Salvage Created 4826 | 133 664 1373 337 . . 1366 . 953 Parts 270 | 14 50 69 20 . . 88 . 29 Haulers Intercepted 10 | . 2 3 . . . 2 . 3 Recyclers Shooed 5 | 1 1 2 . . . 1 . . Parts Field Recycled . | . . . . . . . . . Retrieved Matter . | . . . . . . . . . Parts Self-Destructed . | . . . . . . . . . Prevented . | . . . . . . . . . Parts Restored . | . . . . . . . . . Kills | -11 -10 -9 -9 -9 -9 -6 -6 -6 ------- Run | Yrd Mat Mat Sto Rec Scr Fac Was Fac Combat Hostiles Destroyed 67 | . 9 26 7 . . 20 . 5 Melee 14 | . . . . . . 9 . 5 Guns 27 | . 4 17 6 . . . . . Cannons 12 | . 5 7 . . . . . . AOE 11 | . . . . . . 11 . . Classes Destroyed 14 | 2 6 4 . . . 2 . . Worker 19 | 1 4 1 . . . 11 . 2 Builder 3 | . . 1 . . . 1 . 1 Tunneler 6 | 5 . . . . . 1 . . Hauler 10 | . 2 3 . . . 2 . 3 Recycler 7 | . 2 2 . . . 1 . 2 Operator 12 | . 3 2 1 . . 4 . 2 Watcher 10 | . 1 3 1 . . 4 . 1 Swarmer 14 | . 2 7 . . . 5 . . Grunt 31 | . 7 8 4 . . 7 . 5 Brawler 1 | . . 1 . . . . . . Duelist 1 | . . 1 . . . . . . Sentry 14 | . . 9 3 . . 2 . . Hunter 2 | . . . . . . 2 . . Programmer 4 | . . . . . . 4 . . Best Kill Streak 8 | 3 3 3 4 . . 8 . 4 Combat Bots Only 5 | . 2 3 3 . . 5 . 2 Max Kills in Single Turn 4 | 1 1 1 1 . . 4 . 1 Gunslinging . | . . . . . . . . . Exploded 2 | . . . . . . 2 . . Melee 1 | . . . . . . 1 . 1 Uniques/NPCs Destroyed . | . . . . . . . . . Combat | -11 -10 -9 -9 -9 -9 -6 -6 -6 -------- Run | Yrd Mat Mat Sto Rec Scr Fac Was Fac Hostile Shots Fired 434 | . 33 132 37 . . 117 . 115 Missed 147 | . 12 42 7 . . 55 . 31 Hits 287 | . 21 90 30 . . 62 . 84 Melee 3 | . . 3 . . . . . . Projectile 284 | . 21 87 30 . . 62 . 84 Critical Strikes 13 | . . 2 . . . 5 . 6 Actively Blocked 1 | . . . . . . . . 1 Part Disruptions 1 | . . . . . . 1 . . Damage Taken 4594 | . 214 1116 414 . . 1188 . 1662 Core 1060 | . 27 114 60 . . 194 . 665 Absorbed by Shields . | . . . . . . . . . Redirected to Shielding 163 | . . . . . . . . 163 Regen/Repaired (Parts) 320 | . 217 . . . 83 20 . . Core Remaining (%) 81 | 100 89 . . . 56 . . . Volleys Fired 264 | 14 86 119 26 . . 19 . . Largest 2 | 2 2 2 2 . . 1 . . Hottest 120 | 40 100 120 112 . . 43 . . Shots Fired 498 | 28 163 237 51 . . 19 . . Gun 374 | 28 127 168 51 . . . . . Cannon 102 | . 27 68 . . . 7 . . Launcher 12 | . . . . . . 12 . . Special 10 | . 9 1 . . . . . . Kinetic 177 | 28 136 6 . . . 7 . . Thermal 309 | . 27 231 51 . . . . . Explosive 12 | . . . . . . 12 . . Electromagnetic . | . . . . . . . . . Robot Hit Streak 16 | 5 8 16 9 . . 5 . . Robot Miss Streak 6 | 3 6 5 3 . . 2 . . Penetration Max . | . . . . . . . . . Secondary Targets 3 | . 1 1 1 . . . . . Max Gunslinging Chain 1 | . 1 1 1 . . . . . Shots Hit Robots 392 | 17 90 141 34 . . 59 . 51 Core Hits 169 | 10 33 48 11 . . 52 . 15 Critical Kills . | . . . . . . . . . Critical Parts Destroyed . | . . . . . . . . . Critical Strikes 28 | . 1 15 3 . . 5 . 4 Burn 18 | . . 15 3 . . . . . Blast 1 | . 1 . . . . . . . Sever 5 | . . . . . . 1 . 4 Melee Attacks 259 | . . . . . . 181 . 78 Impact . | . . . . . . . . . Slashing 256 | . . . . . . 178 . 78 Piercing . | . . . . . . . . . Sneak Attacks 26 | . . . . . . 16 . 10 Combat Hostiles 2 | . . . . . . 2 . . Follow-up Attacks 18 | . . . . . . 6 . 12 Damage Inflicted 11606 | 176 1143 2440 575 . . 4771 . 2501 Guns 3325 | 176 754 1820 575 . . . . . Cannons 1009 | . 389 620 . . . . . . Explosions 1822 | . . . . . . 1822 . . Melee 5450 | . . . . . . 2949 . 2501 Ramming . | . . . . . . . . . Kinetic 1110 | 176 878 56 . . . . . . Thermal 3224 | . 265 2384 575 . . . . . Explosive 1822 | . . . . . . 1822 . . Electromagnetic . | . . . . . . . . . Impact . | . . . . . . . . . Slashing 5450 | . . . . . . 2949 . 2501 Piercing . | . . . . . . . . . Highest Corruption 11 | . . 1 1 1 . 4 11 11 Average Corruption 3 | . . 1 1 1 . 2 7 8 Corruption Purged 5 | . . . . . . . . 5 Corruption Blocked . | . . . . . . . . . Effects 61 | . . 4 9 2 . 30 2 14 Message Errors 14 | . . 1 3 . . 6 . 4 Matter Fused 15 | . . . 2 1 . 8 . 4 Heat Flow Errors 9 | . . . 1 1 . 4 . 3 Energy Discharges 9 | . . . . . . 6 1 2 Parts Rejected 1 | . . 1 . . . . . . Data Loss (minor) 8 | . . 1 1 . . 5 . 1 Data Loss (major) 2 | . . . 1 . . 1 . . Alerts 1 | . . 1 . . . . . . Misdirections 1 | . . . . . . . 1 . Weapon Failures 1 | . . . 1 . . . . . Overload Shots . | . . . . . . . . . Overflow Damage 712 | . 3 10 . . . 379 . 320 Projectiles 13 | . 3 10 . . . . . . Explosions 89 | . . . . . . 89 . . Melee 610 | . . . . . . 290 . 320 Knockbacks 5 | . 4 1 . . . . . . Impact . | . . . . . . . . . Kinetic 5 | . 4 1 . . . . . . Secondary . | . . . . . . . . . Self-Inflicted Damage 70 | . . . . . . 70 . . Shots 1 | . . . . . . 1 . . Rammed . | . . . . . . . . . Targets Rammed . | . . . . . . . . . Kicked . | . . . . . . . . . Crushed . | . . . . . . . . . Highest Temperature 265 | . 90 204 233 104 . 265 . 261 Average Temperature 40 | . 32 33 37 63 . 48 . 95 Received Heat Transfer 1515 | . 69 357 153 . . 141 . 795 Siege Activations . | . . . . . . . . . Martial Activations . | . . . . . . . . . Shielding Activations . | . . . . . . . . . Robots Disrupted . | . . . . . . . . . Combat Hostiles . | . . . . . . . . . Robots Corrupted . | . . . . . . . . . Combat Hostiles . | . . . . . . . . . Parts Fried . | . . . . . . . . . Impact Corruptions . | . . . . . . . . . Robots Melted 4 | . . 2 2 . . . . . Combat Hostiles 3 | . . 2 1 . . . . . Parts Melted 23 | . . 21 2 . . . . . Heat Transferred 8288 | . 555 6253 1480 . . . . . Parts Sabotaged . | . . . . . . . . . Parts Stolen . | . . . . . . . . . Parts Stripped . | . . . . . . . . . Power Chain Reactions . | . . . . . . . . . Alert | -11 -10 -9 -9 -9 -9 -6 -6 -6 ------- Run | Yrd Mat Mat Sto Rec Scr Fac Was Fac Maximum Alert Level 4 | . . 1 . . . 4 2 1 Low Security (%) 72 | 100 100 85 100 100 . 34 . . Level 1 13 | . . 14 . . . 9 . 100 Level 2 6 | . . . . . . 26 100 . Level 3 6 | . . . . . . 28 . . Level 4 . | . . . . . . 1 . . Level 5 . | . . . . . . . . . High Security . | . . . . . . . . . Max Security . | . . . . . . . . . Peak Influence 1234 | 15 63 314 167 57 . 1234 430 329 Initial 430 | . . 5 122 25 . . 430 294 Average 176 | 1 14 127 84 15 . 449 426 264 Influence Increases 3710 | 30 327 856 224 77 . 1817 . 379 Destroy 0b10 Robot/C 1340 | . 180 520 140 . . 400 . 100 Destroy 0b10 Robot/NC 335 | 30 60 60 10 . . 120 . 55 Destroy Leader 450 | . 56 182 52 . . 122 . 38 Successful Hack 112 | . 8 15 21 17 . 37 . 14 Select Force Hacks 60 | . . . . 60 . . . . Disable Machine 360 | . 15 15 . . . 300 . 30 Destroy Structure 213 | . 8 4 1 . . 193 . 7 Partial Spotted 90 | . . . . . . 90 . . Lose Combat Pursuer 750 | . . 60 . . . 555 . 135 Influence Decreases 3405 | 30 312 581 448 143 . 586 811 494 Entered New Map 1146 | . . 10 168 41 . . 801 126 Time Decay 2028 | 30 312 531 280 102 . 525 10 238 Lost Part 231 | . . 40 . . . 61 . 130 Squads Dispatched 36 | . 3 3 1 . . 18 . 11 Investigation 19 | . . 1 . . . 10 . 8 Extermination 6 | . . . . . . 5 . 1 Reinforcement 9 | . 3 2 1 . . 3 . . Assault . | . . . . . . . . . Garrison 2 | . . . . . . . . 2 Intercept . | . . . . . . . . . Searches Triggered . | . . . . . . . . . Construction Impeded . | . . . . . . . . . Haulers Reinforced 1 | . . . . . . 1 . . Active Scanning Responses . | . . . . . . . . . Cargo Convoy Interrupts . | . . . . . . . . . Stealth | -11 -10 -9 -9 -9 -9 -6 -6 -6 --------- Run | Yrd Mat Mat Sto Rec Scr Fac Was Fac Distress Signals 8 | . . 2 1 . . 4 . 1 Communications Jammed . | . . . . . . . . . Distress Signals . | . . . . . . . . . Times Spotted 163 | . 18 41 10 . . 65 3 26 Peak Tracking Total 8 | . 4 5 4 . . 8 3 7 Tactical Retreats 22 | . . 2 . . . 15 . 5 ECM-based Alert Blocks 6 | . . . . . . 6 . . Traps | -11 -10 -9 -9 -9 -9 -6 -6 -6 ------- Run | Yrd Mat Mat Sto Rec Scr Fac Was Fac Traps Triggered 8 | . . . . . . 6 . 2 Indirectly . | . . . . . . . . . Trap Hack Attempts . | . . . . . . . . . Triggered . | . . . . . . . . . Disarmed . | . . . . . . . . . Reprogrammed . | . . . . . . . . . Reused . | . . . . . . . . . Traps Extracted . | . . . . . . . . . Installed . | . . . . . . . . . Triggered . | . . . . . . . . . Machines | -11 -10 -9 -9 -9 -9 -6 -6 -6 ---------- Run | Yrd Mat Mat Sto Rec Scr Fac Was Fac Machines Disabled 24 | . 1 1 . . . 20 . 2 Max in Single Turn 8 | . 1 1 . . . 8 . 1 Garrison Access 2 | . . . . . . 2 . . Machines Repaired . | . . . . . . . . . Machines Dismantled . | . . . . . . . . . Machines Sabotaged . | . . . . . . . . . Overloaded Fab Kills . | . . . . . . . . . Hacking | -11 -10 -9 -9 -9 -9 -6 -6 -6 --------- Run | Yrd Mat Mat Sto Rec Scr Fac Was Fac Machines Accessed 66 | . 6 5 4 4 5 28 . 14 Terminals 33 | . 5 5 4 2 . 12 . 5 Fabricators 4 | . . . . . . 3 . 1 Repair Stations 3 | . 1 . . . . 2 . . Recycling Units 15 | . . . . 2 . 7 . 6 Scanalyzers 2 | . . . . . . 1 . 1 Garrison Access 4 | . . . . . . 3 . 1 Total Hacks 159 | . 17 11 13 7 17 66 . 28 Successful 95 | . 11 5 6 5 17 36 . 15 Failed 63 | . 5 6 7 2 . 30 . 13 Catastrophic 15 | . . 2 . 1 . 8 . 4 Database Lockouts 1 | . 1 . . . . . . . Manual 57 | . 7 3 5 5 . 20 . 17 Terminals 81 | . 11 11 13 5 . 30 . 11 Fabricators 14 | . . . . . . 12 . 2 Repair Stations 10 | . 6 . . . . 4 . . Recycling Units 25 | . . . . 2 . 12 . 11 Scanalyzers 7 | . . . . . . 5 . 2 Garrison Access 5 | . . . . . . 3 . 2 Terminal Hacks 47 | . 4 4 5 2 17 11 . 4 Record 16 | . . . . . 16 . . . Part Schematic 4 | . 1 . 1 1 . 1 . . Robot Analysis 1 | . 1 . . . . . . . Prototype ID Bank 5 | . 2 1 . 1 . 1 . . Open Door 3 | . . . 1 . 1 1 . . Branch Access Points 1 | . . 1 . . . . . . Terminal Index 2 | . . 1 . . . 1 . . Repair Station Index 1 | . . . . . . . . 1 Recycling Unit Index 1 | . . . . . . . . 1 Alert Level 1 | . . . . . . . . 1 Locate Traps 2 | . . . . . . 2 . . Transport Status 1 | . . . 1 . . . . . Hauler Manifests 3 | . . 1 1 . . 1 . . Registered Components 2 | . . . . . . 1 . 1 Zone Layout 4 | . . . 1 . . 3 . . Fabricator Hacks 6 | . . . . . . 5 . 1 Network Status 1 | . . . . . . 1 . . Load Schematic 3 | . . . . . . 2 . 1 Build 2 | . . . . . . 2 . . Repair Station Hacks 9 | . 6 . . . . 3 . . Scan Component 5 | . 3 . . . . 2 . . Repair 4 | . 3 . . . . 1 . . Recycling Unit Hacks 1 | . . . . . . 1 . . Retrieve Components 1 | . . . . . . 1 . . Scanalyzer 7 | . . . . . . 5 . 2 Insert Component 3 | . . . . . . 2 . 1 Analyze 3 | . . . . . . 2 . 1 Retrieve Study 1 | . . . . . . 1 . . Garrison Access Hacks 2 | . . . . . . 2 . . Seal Access 2 | . . . . . . 2 . . Unauthorized Hacks 23 | . 1 1 1 3 . 9 . 8 Terminals 6 | . 1 1 1 1 . 1 . 1 Botnet 6 | . 1 1 1 1 . 1 . 1 Fabricators 3 | . . . . . . 2 . 1 Recompile 3 | . . . . . . 2 . 1 Repair Stations . | . . . . . . . . . Recycling Units 14 | . . . . 2 . 6 . 6 Tunnel 2 | . . . . 2 . . . . Fedlink 12 | . . . . . . 6 . 6 Scanalyzers . | . . . . . . . . . Garrison Access . | . . . . . . . . . Data Cores Recovered 6 | . . . . . . 4 . 2 Used 1 | . . . . . . 1 . . Hacking Detections 38 | . 5 4 2 2 . 19 . 6 Full Trace Events 3 | . . 1 . . . 1 . 1 Feedback Events 1 | . . 1 . . . . . . Corruption 1 | . . 1 . . . . . . Feedback Blocked . | . . . . . . . . . Robot Schematics Acquired . | . . . . . . . . . Robots Built . | . . . . . . . . . Authchips . | . . . . . . . . . Time . | . . . . . . . . . Total Robot Build Rating . | . . . . . . . . . Part Schematics Acquired 7 | . 1 . 1 1 . 3 . 1 Parts Built 3 | . . . . . . 3 . . Authchips 1 | . . . . . . 1 . . Time 102 | . . . . . . 102 . . Total Part Build Rating 14 | . . . . . . 14 . . Part Studies Acquired 1 | . . . . . . 1 . . Parts Repaired 4 | . 3 . . . . 1 . . Time 129 | . 78 . . . . 51 . . Parts Recycled . | . . . . . . . . . Recycled Matter . | . . . . . . . . . Retrieved Matter . | . . . . . . . . . Retrieved Components 1 | . . . . . . 1 . . Parts Scanalyzed 3 | . . . . . . 2 . 1 Part Schematics Acquired 3 | . . . . . . 2 . 1 Parts Damaged . | . . . . . . . . . Bothacking | -11 -10 -9 -9 -9 -9 -6 -6 -6 ------------ Run | Yrd Mat Mat Sto Rec Scr Fac Was Fac Used RIF Installer . | . . . . . . . . . Robots Hacked 2 | . . . . . . 2 . . Non-combat 2 | . . . . . . 2 . . Combat . | . . . . . . . . . Robot Hacks Applied 2 | . . . . . . 2 . . find_chute 1 | . . . . . . 1 . . find_recycling 1 | . . . . . . 1 . . Relay Couplers Released . | . . . . . . . . . Fabnet Peak Effective % . | . . . . . . . . . Robots Rewired . | . . . . . . . . . Allies Hacked . | . . . . . . . . . Hacks Repelled . | . . . . . . . . . Allies | -11 -10 -9 -9 -9 -9 -6 -6 -6 -------- Run | Yrd Mat Mat Sto Rec Scr Fac Was Fac Total Allies . | . . . . . . . . . Largest Group . | . . . . . . . . . Highest-Rated Group . | . . . . . . . . . Highest-Rated Ally . | . . . . . . . . . Initial UFD Resources 45 | . . . . . . 23 45 45 Total Orders . | . . . . . . . . . Ally Attacks . | . . . . . . . . . Total Damage . | . . . . . . . . . Kills . | . . . . . . . . . Allies Corrupted . | . . . . . . . . . Allies Melted . | . . . . . . . . . Intel | -11 -10 -9 -9 -9 -9 -6 -6 -6 ------- Run | Yrd Mat Mat Sto Rec Scr Fac Was Fac Active Infowar (turns) 9553 | 115 1659 1819 620 332 3147 1615 31 215 Sensors 2278 | . . . . . 525 1507 31 215 Seismic 7284 | 115 1659 1819 620 332 2623 116 . . Machine Analysis 77 | . . . . . . . . 77 ECM 104 | . . . . . . 104 . . Robot Analysis Total 1 | . 1 . . . . . . . Derelict Logs Recovered . | . . . . . . . . . Drone Launches . | . . . . . . . . . Drone Recoveries . | . . . . . . . . . Exploration | -11 -10 -9 -9 -9 -9 -6 -6 -6 ------------- Run | Yrd Mat Mat Sto Rec Scr Fac Was Fac Turns Passed 9994 | 216 1659 1830 620 332 3147 1654 31 505 Spaces Moved 7228 | 102 756 767 195 139 1375 3133 69 692 Core 5 | 3 . . . . . . . 2 Treads 1672 | 99 441 121 195 139 677 . . . Legs 4 | . . . . . . . . 4 Wheels 1659 | . 315 646 . . 698 . . . Hover 1076 | . . . . . . 321 69 686 Flight 2812 | . . . . . . 2812 . . Fastest Speed 23 | 50 160 135 240 240 215 23 43 35 Average Speed 108 | 156 166 172 240 240 227 27 43 43 Slowest Speed 480 | 160 175 480 240 240 240 170 43 450 Overloaded Moves . | . . . . . . . . . Propulsion Burnouts . | . . . . . . . . . Robots Hopped 23 | . . . . . . 23 . . Potential Cave-ins 2 | . . . . . . 2 . . Cave-ins Triggered 1 | . . . . . . 1 . . Exploration Rate (%) 53 | 3 95 67 32 43 86 65 67 25 Regions Visited 8 Branch Regions 3 Pre-discovered Areas 3 | . . . . 2 . 1 . . Known Exits Taken 1 | . . 1 . . . . . . Unknown Exits Taken 5 | 1 1 . 1 1 1 . . . Scrap Searched 12 | . . . . . 12 . . . Spaces Dug 109 | . 9 1 . . . 92 . 7 Terrain Destroyed 235 | . 9 1 . . . 218 . 7 Melee 81 | . . . . . . 74 . 7 Projectile 13 | . 9 1 . . . 3 . . AOE 141 | . . . . . . 141 . . Terrain Rammed . | . . . . . . . . . Walls Destroyed . | . . . . . . . . . Machines Disabled . | . . . . . . . . . Actions | -11 -10 -9 -9 -9 -9 -6 -6 -6 --------- Run | Yrd Mat Mat Sto Rec Scr Fac Was Fac Total 8542 | 130 991 1042 301 138 1399 3667 69 805 Wait 481 | . 99 68 58 . . 239 . 17 Move 7179 | 101 755 766 194 138 1374 3091 68 692 Hop 18 | . . . . . . 18 . . Pick Up 105 | 8 27 26 7 . 6 23 . 8 Fast Attach 55 | 7 2 7 . . 2 26 1 10 Attach 40 | . 2 10 2 . 3 18 . 5 Detach 10 | . 1 . . . . 6 . 3 Swap 57 | . 9 13 3 . 5 25 . 2 Drop 124 | . 10 33 10 . 9 53 . 9 Fire 264 | 14 86 119 26 . . 19 . . Melee 207 | . . . . . . 148 . 59 Ram . | . . . . . . . . . Kick . | . . . . . . . . . Crush . | . . . . . . . . . Escape Stasis 1 | . . . . . . 1 . . Rewire 1 | . . . 1 . . . . . Trap . | . . . . . . . . . Miscellaneous . | . . . . . . . . . Route ------- -11/Scrapyard -10/Materials (discovered 6 exits: *Mat x3 / [*Min x2] / [*Sub]) -9/Materials (discovered 4 exits: [*Mat x2] / *Min / *Sto) -9/Storage -9/Recycling (discovered 2 exits: [*Fac] / *Scr) -9/Scraptown (discovered 2 exits: *Fac x2) -6/Factory (discovered 7 exits: *Fac x3 / *Low x2 / [*Ext x2]) -6/Waste -6/Factory (discovered 3 exits: *Low x2 / [*Ext]) History --------- Turn | Location | Event 12 | -11/Scrapyard | Discovered new exit (range 15) 217 | -11/Scrapyard | Entered Materials 217 | -10/Materials | Discovered new exit (range 7) 313 | -10/Materials | Build established: Mutant 380 | -10/Materials | Discovered new exit (range 8) 482 | -10/Materials | Discovered new exit (range 13) 827 | -10/Materials | Discovered new exit (range 16) 919 | -10/Materials | Central database locked down 1499 | -10/Materials | Repaired Lgt. Treads 1533 | -10/Materials | Repaired Lgt. Treads 1560 | -10/Materials | Repaired Lgt. Treads 1691 | -10/Materials | Discovered new exit (range 5) 1745 | -10/Materials | Discovered new exit (range 5) 1876 | -10/Materials | Entered another Materials area 1876 | -9/Materials | Evolved 2 slots: Propulsion x1, Utility x1 2061 | -9/Materials | Discovered new exit (range 11) 2406 | -9/Materials | Discovered new exit (range 15) 2756 | -9/Materials | Build established: Scavenger-Mutant 2918 | -9/Materials | Identified exit to Mines 2918 | -9/Materials | Identified exit to Storage 3267 | -9/Materials | Discovered new exit (range 16) 3706 | -9/Materials | Entered Storage 4319 | -9/Storage | Used back door to open Recycling access 4319 | -9/Storage | Discovered new exit (range 4) 4326 | -9/Storage | Entered Recycling 4554 | -9/Recycling | Discovered new exit (range 9) 4578 | -9/Recycling | Scanned before Scraplab entrance 4634 | -9/Recycling | Entered Scraplab 4653 | -9/Recycling | Discovered new exit (range 3) 4658 | -9/Recycling | Entered Scraptown 4658 | -9/Scraptown | System corruption cleaned by C-Scrubber 4939 | -9/Scraptown | Visited Cave Peace 4961 | -9/Scraptown | Visited Symbiants 5571 | -9/Scraptown | Discovered new exit (range 11) 5633 | -9/Scraptown | Build established: Mutant 5677 | -9/Scraptown | Visited Assassins FH 5710 | -9/Scraptown | Visited Cyclists 5790 | -9/Scraptown | Visited CR-KLE's Repair Center 5826 | -9/Scraptown | Visited Bundlers 5933 | -9/Scraptown | Visited Red Mages 6009 | -9/Scraptown | Visited UFD Registry 6009 | -9/Scraptown | Registered with UFD as "Dualkit" 6089 | -9/Scraptown | Visited Abandonware Association 6113 | -9/Scraptown | Learned abandonware demo "REVENGE.EXE" 6170 | -9/Scraptown | Visited Curators Association 6261 | -9/Scraptown | Visited DA-N13 Charitable Foundation 6283 | -9/Scraptown | Found DCF Scrap (26 items) 6348 | -9/Scraptown | Visited Derelict Rescue Squad 6578 | -9/Scraptown | Visited Sword Containment 6600 | -9/Scraptown | Found Prototype Slashing Weapon 6600 | -9/Scraptown | Identified Companion Sword 6655 | -9/Scraptown | Visited Observation Area 7399 | -9/Scraptown | CR-KLE repaired 5 parts 7472 | -9/Scraptown | Entered Cyclist Reading Room 7587 | -9/Scraptown | Build established: Gladiator 7689 | -9/Scraptown | Met Optimus 7689 | -9/Scraptown | Accepted into 0bPrime 7801 | -9/Scraptown | Discovered new exit (range 3) 7805 | -9/Scraptown | Entered Factory 7805 | -6/Factory | Evolved 6 slots: Propulsion x3, Utility x2, Weapon x1 8153 | -6/Factory | Crushed by falling debris 8241 | -6/Factory | Loaded intel: 8 recycling unit locations 8299 | -6/Factory | Repaired Imp. Flight Unit 8310 | -6/Factory | Learned location of Protoforge (-2) 8364 | -6/Factory | Discovered new exit (range 11) 8496 | -6/Factory | Discovered new exit (range 12) 8578 | -6/Factory | Build established: Hacker-Sprinter 8641 | -6/Factory | Fabricated Mic. Fission Core (x2) 8822 | -6/Factory | Discovered new exit (range 6) 8885 | -6/Factory | Discovered new exit (range 11) 8992 | -6/Factory | Fabricated Imp. Flight Unit (x1) 9033 | -6/Factory | Discovered new exit (range 5) 9037 | -6/Factory | Identified exit to Lower Caves 9175 | -6/Factory | Discovered new exit (range 7) 9177 | -6/Factory | Identified exit to Factory 9388 | -6/Factory | Discovered exit to Factory (range 4) 9459 | -6/Factory | Sucked down chute 9459 | -6/Factory | Entered Waste 9462 | -6/Waste | Spotted C-40 Crusher 9469 | -6/Waste | Spotted C-40 Crusher 9472 | -6/Waste | Spotted C-40 Crusher 9474 | -6/Waste | EMP discharged 9474 | -6/Waste | System corruption reached 10% 9477 | -6/Waste | Spotted C-40 Crusher 9481 | -6/Waste | Spotted C-40 Crusher 9484 | -6/Waste | Discovered new exit (range 14) 9489 | -6/Waste | Identified exit to Factory 9490 | -6/Waste | Entered Factory 9545 | -6/Factory | Discovered exit to Lower Caves (range 8) 9561 | -6/Factory | Loaded intel: 8 recycling unit locations 9596 | -6/Factory | Discovered exit to Lower Caves (range 11) 9640 | -6/Factory | Discovered new exit (range 16) 9868 | -6/Factory | Build established: Scavenger-Mutant 9893 | -6/Factory | Garrison activated, responded to threat 9942 | -6/Factory | Lost 4 parts (4n) 9958 | -6/Factory | Core integrity fell below 50% 9975 | -6/Factory | Core integrity fell below 20% 9995 | -6/Factory | Destroyed by G-50 Soldier with Heavy Laser Last Messages --------------- 09965_ Sneak attack on K-01 Serf. 09965_ Destroyed Wheel. 09965_ K-01 Serf destroyed. 09970_ K-01 Serf collects debris. 09971_ Critical hit (Burn: +37). 09972_ M-13 Machinist suffers critical hit (Burn). 09972_ M-13 Machinist destroyed. 09973_ K-01 Serf collects debris. 09974_ Mic. Nuclear Core destroyed. 09978_ K-01 Serf collects debris. 09980_ G-50 Soldier destroyed. 09981_ K-01 Serf collects debris. 09988_ WTH4SBXDO#LYUJ=UGVNQXO<1XVVS JGEVNP 09990_ K-01 Serf collects debris. 09990_ Acquired Wheel. 09990_ Critical hit (Burn: +37). 09993_ Y-54 Guardian emerges from the garrison. 09993_ K-01 Serf collects debris. 09993_ Exp. Utility Shielding destroyed. 09995_ Critical hit (Burn: +37). Map ----- +----------------------------------------------------+ | ??????# #????????????????????????????????????????? | | ??????#=#????????????????????????????????????????? | | ??????# #????????????????????????????????????????? | | ""????# #????????????????????????????????????????? | | ??????# #????????????????????????????????????????? | | ""????# ########?????????????????????????????????? | | ??????# # #?????????????????????????????????? | | ####### # #?????????????????????????????????? | | # # """#?????????????????????????????????? | | " " Y"#?????????????????????????????????? | | """" # # """#????????????????????!??????????? | | """" # # #???????????????????????????????? | | """" # ##+#####???????????????????????????????? | | """" # ??????????????????????????????????????? | | """" # ??????????????????????????????????????? | | """" # ???????????????????????????????????!??? | | # ??????????????????????????????????????? | | #######+#??????????????????????????????????????? | | ????????????????????#???##########????????? | | ????????????????????# ??# #????????????? | | ????????????????????# ?# " #?????? ??????# | | ????????????????????# # "" #?????? ??????# | | ????????????????????# %#kG #?????? ??????# | | ?????????!??????????+ %/g"" #?????# ??????# | | ????????????????????# [#%"Y #?????# ???#### | | ????????????????????#^??#@gA #?????# ???# | | ????????????????????????# g #?????# #??# ### | | ????????????????????????# R *% #?????# #??# #?? | | ????????????????????????#####+#######??# #??# #?? | | ????????????????????????????#[% #??# #??# #?? | | ????????????????????????????####### #### #?##+### | | ??????????????????????????????????# #?# | | ??????????????????????????????????# #?# """" | | ??????????????????????????????????# #?# """" | | ??????????????????????????????????# ### """ | | ??????????????????????????????????# + | | ??????????????????????????????????# ## | | ???T??????????????????????????????# ##* | | ??????????????????????????????????# ## ] | | ??????????????????????????????????# ####### | | ??????????????????????????????????# | | ??????????????????????????????????# | | ??????????????????????????????????# """" """"""" | | ??????????????????????????????????# "F " """"""" | | ??????????????????????????????????# """"""? | | ??????????????????????????????????# """"""? | | ??????????????????????????????????# ? | | ??????????????????????????????????# | | ??????????????????????????????????################ | | ?????????????????????????????????????????????????? | +----------------------------------------------------+ Best States ------------- Heat Dissipation 50 Energy Generation 15 Energy Capacity 265 Matter Stores 300 Matter Capacity 300 Sight Range 16 Robot Scan Range 16 Terrain Scan Density 10 ECM Strength 1 EM Shielding 2 Armor Coverage 225 Utility Shielding 90 Evasion (%) 68 Melee Accuracy 6 Recoil Reduction 3 Offensive Hacking 22 Defensive Hacking 12 Authchip Count 2 Item Schematics ----------------- Hcp. Storage Unit | -10/Materials | Hacked Carbon-fiber Leg | -9/Storage | Hacked Gauss Rifle | -9/Recycling | Hacked Imp. Flight Unit | -6/Factory | Scanalyzed Mni. Grenade Launcher | -6/Factory | Scanalyzed Adv. Hacking Suite | -6/Factory | Hacked Biomechanical Wings | -6/Factory | Scanalyzed Robot Schematics ------------------ None Fabricated ------------ Mic. Fission Core | x2 | -6/Factory | Preloaded Imp. Flight Unit | x1 | -6/Factory | Authchip Repaired ---------- Lgt. Treads | 25% | -10/Materials Lgt. Treads | 47% | -10/Materials Lgt. Treads | 71% | -10/Materials Imp. Flight Unit | 50% | -6/Factory Studied --------- Nuclear Pulse Thruster | -6/Factory | Hacked Alien Tech Used ----------------- None Achievements -------------- None Challenges ------------ None Game ------ Seed JunkRapidFirepult Manual? 0 Play Time 02:09:45 Cumulative 368.6 hours Start 2026.07.27 @ 16:28:09 End 2026.07.27 @ 19:05:24 Sessions 3 Manual Loads 0 Difficulty Rogue Special Mode None Game No. 189 Rogue 189 Adventurer 0 Explorer 0 Win Type - Total 7 Types 4/0/1/1/0/0/0/1/0/0 Lore% 70 Gallery% 72 Achievement% 63 Wizard Run 0 Options --------- Layout 1 ASCII 0 Keyboard 0 Movement Mouse Keybinds 0 Fullscreen 1 Font 18/SmallcapsGlow Map View 54x44 Zoom Use 0% Tactical HUD 1 Map Filters NONE Filters NONE Steam 0 RUN: 10dc2796-be16-46aa-b0f2-a30cc87dc864